[Event "Turkish-ch Youth U17 2024"]
[Site "Belek Antalya"]
[Date "2024.01.25"]
[Round "7"]
[White "Kilic, Eray"]
[Black "Eroz, Enis"]
[Result "1-0"]
[ECO "A27"]
[WhiteElo "2452"]
[BlackElo "1840"]
[Annotator "TA"]
[PlyCount "109"]
[EventDate "2024.01.21"]
[EventType "swiss"]
[EventCountry "TUR"]
[SourceTitle "playchess.com"]
[Source "ChessBase"]
[SourceQuality "1"]
[TimeControl "5400+30"]

{[%evp 13,109,-54,-10,-6,-14,-16,-14,-4,-11,-24,-2,-32,-31,-38,-33,-42,-46,-31,-24,-27,-34,-31,-30,-31,-24,-60,-52,-58,-62,-56,-31,-32,-38,-64,-60,-63,-58,-51,-44,-50,-62,-84,-61,-92,-79,-85,-79,-83,-50,-70,-13,-13,-5,-11,15,27,59,17,13,-20,14,6,3,15,4,0,8,20,191,206,208,166,264,271,284,277,264,275,252,247,297,280,371,355,354,320,704,698,812,786,5397,3211,29990,29991,29991,29992,29992,29993]} 1. c4 {[%emt 0:01:00]} e5 {[%emt 0:02:00]} 2. Nc3 {[%emt 0:00:30]} Nc6 {[%emt 0:00:30]} 3. Nf3 {[%emt 0:00:00]} g6 {[%emt 0:03:30]} 4. d4 {[%emt 0:00:00]} exd4 {[%emt 0:00:30]} 5. Nd5 {[%emt 0:00:30]} Bg7 {[%emt 0:12:30]} 6. Bg5 {[%emt 0:00:30]} Nce7 {[%emt 0:13:30]} 7. Nxd4 {[%emt 0:03:30]} c6 {[%emt 0:02:30]} 8. Nc3 {[%emt 0:07:30]} h6 {[%emt 0:02:30]} 9. Bf4 {[%emt 0:01:30]} d5 {[%emt 0:03:30]} 10. e3 {[%emt 0:01:30] The position is equal.} Nf6 {[%emt 0:00:30]} 11. Be2 {[%emt 0:04:30] Inhibits Nh5.} O-O {[%emt 0:01:30]} 12. c5 {[%emt 0:08:30]} Nf5 {[%emt 0:05:30]} 13. O-O {[%emt 0:04:30]} Re8 {[%emt 0:02:30]} 14. Bd3 {[%emt 0:09:30]} Nxd4 {[%emt 0:11:30]} 15. exd4 {[%emt 0:00:30]} Nh5 {[%emt 0:00:30]} 16. Be3 {[%emt 0:07:30]} Qh4 {[%emt 0:02:30]} 17. g3 {[%emt 0:03:30]} Qh3 {[%emt 0:09:30][%cal Oh5g3] [#] Hoping for ...Nxg3!} 18. Re1 {[%emt 0:00:30]} Nf6 {[%emt 0:00:30][%cal Bh5f6,Bf6h7,Bh7g5,Bg5h3][%mdl 32]} 19. f3 {[%emt 0:01:30] Inhibits Ng4.} Nh7 {[%emt 0:09:07][%cal Oe8e3] Threatens to win with ...Rxe3!} 20. Qd2 {[%emt 0:06:30]} Bd7 {[%emt 0:03:45][%cal Oh7g5]} 21. Bf1 {[%emt 0:09:30]} Qf5 {[%emt 0:00:54]} 22. Bg2 {[%emt 0:00:30]} Ng5 {[%emt 0:00:35]} 23. Rf1 {[%emt 0:00:30]} Nh3+ {[%emt 0:04:08]} 24. Kh1 {[%emt 0:01:30][%cal Og3g4]} h5 {[%emt 0:00:11]} 25. Rae1 {[%emt 0:01:30]} Re7 {[%emt 0:01:27]} 26. b4 {[%emt 0:08:36]} Rae8 {[%emt 0:02:05]} 27. Re2 {[%emt 0:04:37]} Kh7 {[%emt 0:00:30]} 28. f4 {[%emt 0:02:13]} Bf6 {[%emt 0:02:17]} 29. Bf3 {[%emt 0:00:33]} Bc8 {[%emt 0:01:40]} 30. b5 {[%emt 0:01:13]} Kg7 {[%emt 0:00:14]} 31. a4 {[%emt 0:00:40]} g5 {[%emt 0:00:53]} (31... a6 $15) 32. fxg5 $11 {[%emt 0:02:09]} Bxg5 {[%emt 0:00:30]} 33. Bxg5 {[%emt 0:00:30]} Nxg5 {[%emt 0:00:30]} (33... Qxg5 {simplifies} 34. Qxg5+ Nxg5 35. Bxh5 Kh6) 34. Bg2 {[%emt 0:00:33]} Qg6 {[%emt 0:00:10]} 35. Rxe7 {[%emt 0:00:29]} Rxe7 {[%emt 0:00:30]} 36. Qf4 {[%emt 0:00:30]} Re8 {[%emt 0:00:30]} 37. a5 {[%emt 0:00:30][%cal Oa5a6]} a6 $1 {[%emt 0:00:53]} 38. bxa6 {[%emt 0:01:09]} bxa6 {[%emt 0:00:30]} 39. h4 {[%emt 0:00:30]} Ne6 {[%emt 0:00:30]} 40. Qf2 {[%emt 0:00:30]} f5 $2 {[%emt 0:00:30] Black cannot hold the game after this.} 41. Ne2 $1 $18 {[%emt 0:00:30]} (41. Qxf5 Qxf5 42. Rxf5 Nxd4 43. Rxh5 Re1+ 44. Kh2 Rc1 45. Nxd5 Rc2 (45... cxd5 46. Rxd5 Nf5 47. c6 $17) 46. Rg5+ Kh6 $19) 41... Qg4 {[%emt 0:00:30][%cal Oe6c5]} 42. Bf3 $36 {[%emt 0:00:00][%mdl 2048] Keeping Black busy.} Qg6 {[%emt 0:01:49]} (42... Qh3+ $142 43. Kg1 f4 44. Bxh5 (44. gxf4 Kh7 $11) 44... Rf8) 43. Nf4 {[%emt 0:00:28]} Nxf4 {[%emt 0:00:22]} 44. gxf4 {[%emt 0:00:30] Strongly threatening Rg1.} Qf6 {[%emt 0:00:30]} 45. Rg1+ {[%emt 0:00:30]} (45. Bxh5 Re4 46. Rg1+ Kf8 $16) 45... Kf8 {[%emt 0:00:30]} 46. Kh2 {[%emt 0:00:30]} Be6 {[%emt 0:00:30]} 47. Bxh5 {[%emt 0:00:30]} Re7 {[%emt 0:00:30]} 48. Rg6 {[%emt 0:00:30]} Qh8 {[%emt 0:00:30]} 49. Bf3 {[%emt 0:00:30] And now h5 would win.} Kf7 $2 {[%emt 0:00:16]} (49... Bd7 50. h5 Be8) 50. h5 {[%emt 0:00:24][%cal Bh4h5,Bh5h6][%mdl 32]} Re8 {[%emt 0:00:59][%cal Be7e8,Be8b8,Bb8b2][%mdl 32]} 51. Qg1 {[%emt 0:00:54] aiming for h6.} Rb8 {[%emt 0:00:12]} 52. h6 {[%emt 0:00:51] Rg7+ would kill now.} Rb2+ {[%emt 0:00:30]} 53. Kh3 {[%emt 0:00:00] White mates.} Rb3 {[%emt 0:00:13]} 54. Rg7+ {[%emt 0:00:28]} (54. Qg3 Rxf3 (54... Qxd4 $2 {too greedy.} 55. Rg7+ Kf8 56. Ra7 $18) 55. Qxf3 Kxg6 $19) 54... Kf8 {[%emt 0:00:30] [#]} 55. Qg5 $1 {[%emt 0:00:00] Weighted Error Value: White=0.06 (flawless) /Black=0.35.  Loses game:     	---       	Black=1      Mistake:       	---       	Black=3      Inaccurate:     	White=6     	Black=5      OK:         	White=24    	Black=18     Best:        	White=1     	---        Strong:       	---       	Black=1} 1-0

[Event "Turkish-ch Youth U17 2024"]
[Site "Belek Antalya"]
[Date "2024.01.25"]
[Round "7"]
[White "Atis, Hasan"]
[Black "Atik, Muhammed Ihsan"]
[Result "1/2-1/2"]
[ECO "B45"]
[WhiteElo "2104"]
[BlackElo "1626"]
[Annotator "NA RC"]
[PlyCount "138"]
[EventDate "2024.01.21"]
[EventType "swiss"]
[EventCountry "TUR"]
[SourceTitle "playchess.com"]
[Source "ChessBase"]
[SourceQuality "1"]
[TimeControl "5400+30"]

1. e4 {[%emt 0:06:00]} c5 {[%emt 0:01:00]} 2. Nf3 {[%emt 0:00:30]} e6 {[%emt 0:00:00]} 3. d4 {[%emt 0:00:00]} cxd4 {[%emt 0:00:00]} 4. Nxd4 {[%emt 0:00:00]} Nf6 {[%emt 0:00:30]} 5. Nc3 {[%emt 0:00:30]} Nc6 {[%emt 0:00:30]} 6. a3 {[%emt 0:00:00]} Qa5 {[%emt 0:07:30]} 7. Nb3 {[%emt 0:04:00]} Qc7 {[%emt 0:01:30]} 8. Qf3 {[%emt 0:16:30]} a6 {[%emt 0:08:30]} 9. Be2 {[%emt 0:05:30]} b5 {[%emt 0:04:30]} 10. Bf4 {[%emt 0:08:30]} Bd6 {[%emt 0:09:30]} (10... d6 $11 {might be stronger.}) 11. Bxd6 {[%emt 0:03:30]} Qxd6 {[%emt 0:00:30]} 12. Rd1 {[%emt 0:00:00]} Qc7 {[%emt 0:04:30]} 13. Qg3 {[%emt 0:21:00]} Qxg3 {[%emt 0:09:30]} 14. hxg3 {[%emt 0:00:00]} Ke7 $14 {[%emt 0:00:30]} 15. f4 {[%emt 0:12:00]} d6 {[%emt 0:01:30]} 16. g4 {[%emt 0:00:00]} Bb7 {[%emt 0:11:30]} 17. g5 {[%emt 0:00:00]} Nd7 {[%emt 0:00:30]} 18. Kd2 {[%emt 0:04:36]} Nc5 {[%emt 0:03:30]} 19. Kc1 {[%emt 0:03:34]} Nxb3+ {[%emt 0:04:30]} 20. cxb3 {[%emt 0:00:06]} Rad8 {[%emt 0:06:30]} 21. b4 {[%emt 0:06:22]} e5 {[%emt 0:01:30]} 22. f5 {[%emt 0:00:01]} Nd4 {[%emt 0:00:30]} 23. Rde1 {[%emt 0:05:59]} h6 {[%emt 0:05:30]} 24. gxh6 {[%emt 0:00:56]} Rxh6 {[%emt 0:00:30]} 25. Rxh6 {[%emt 0:00:30]} gxh6 {[%emt 0:00:00]} 26. Bd1 {[%emt 0:00:08]} Rc8 {[%emt 0:03:18]} 27. Kd2 {[%emt 0:00:30]} Rg8 {[%emt 0:00:30]} 28. g4 {[%emt 0:00:19]} Kf6 {[%emt 0:02:44]} 29. Rh1 {[%emt 0:01:14]} Kg7 {[%emt 0:00:27]} 30. Ke3 {[%emt 0:00:43]} f6 {[%emt 0:00:11]} 31. Kf2 {[%emt 0:02:27]} Rd8 {[%emt 0:00:23]} 32. Bf3 {[%emt 0:00:10]} Rc8 {[%emt 0:01:24]} 33. Rd1 {[%emt 0:00:12]} Kf7 {[%emt 0:00:04]} 34. Be2 {[%emt 0:01:03]} Ke7 {[%emt 0:00:30]} 35. Rd3 {[%emt 0:00:30]} Kf7 {[%emt 0:00:30]} 36. Bd1 {[%emt 0:00:00]} Bc6 {[%emt 0:01:18]} 37. Rh3 {[%emt 0:00:54]} Kg7 {[%emt 0:00:05]} 38. Rd3 {[%emt 0:00:36]} Bb7 {[%emt 0:00:30]} 39. Ke3 {[%emt 0:00:00]} Kf7 {[%emt 0:00:13]} 40. Ne2 {[%emt 0:00:21]} Nxe2 {[%emt 0:03:03]} 41. Bxe2 {[%emt 0:00:30]} Ke7 {[%emt 0:00:30]} 42. Rd1 {[%emt 0:01:09]} Rc2 {[%emt 0:02:05]} 43. Bf3 {[%emt 0:00:10]} Rxb2 {[%emt 0:01:09]} 44. Rh1 {[%emt 0:00:01]} Rb3+ {[%emt 0:00:39]} 45. Kf2 {[%emt 0:00:09]} d5 {[%emt 0:02:32]} 46. Rxh6 {[%emt 0:00:30]} dxe4 {[%emt 0:00:30]} 47. Rh7+ {[%emt 0:00:30]} Kd6 {[%emt 0:00:00]} 48. Bd1 {[%emt 0:01:11]} Rb1 {[%emt 0:04:23]} 49. Bc2 {[%emt 0:00:49]} Rb2 {[%emt 0:00:12]} 50. Rxb7 {[%emt 0:00:27]} Rxc2+ {[%emt 0:00:30]} 51. Ke3 {[%emt 0:00:00]} Rg2 {[%emt 0:01:18]} 52. Rg7 {[%emt 0:00:41]} Kd5 {[%emt 0:00:37]} 53. Rd7+ {[%emt 0:00:30]} Kc4 {[%emt 0:00:00]} 54. Rg7 {[%emt 0:00:28]} Kb3 {[%emt 0:00:37]} 55. g5 {[%emt 0:01:30]} fxg5 {[%emt 0:00:30]} 56. f6 {[%emt 0:00:30]} Rg4 {[%emt 0:00:01]} 57. Ra7 {[%emt 0:00:00]} Kxa3 {[%emt 0:00:30]} 58. Rxa6+ {[%emt 0:00:32]} Kxb4 {[%emt 0:00:00]} 59. Ra2 {[%emt 0:00:15]} Rh4 {[%emt 0:01:49]} 60. Rf2 {[%emt 0:00:43]} Rh8 {[%emt 0:00:40]} 61. Kxe4 {[%emt 0:00:36]} Kc3 {[%emt 0:00:19]} 62. Rf3+ {[%emt 0:00:21]} Kc2 {[%emt 0:00:13]} 63. Kd5 {[%emt 0:00:45]} b4 {[%emt 0:01:20]} 64. f7 {[%emt 0:00:09]} b3 {[%emt 0:00:29]} 65. Rf2+ {[%emt 0:00:31]} Kc1 {[%emt 0:00:07]} 66. Rf1+ {[%emt 0:00:41]} Kc2 {[%emt 0:00:30]} 67. Rf2+ {[%emt 0:00:00]} Kc1 {[%emt 0:00:00]} 68. Rf1+ {[%emt 0:00:38]} Kc2 {[%emt 0:00:50]} 69. Rf2+ {[%emt 0:00:30]} Kc1 {[%emt 0:00:05]} 1/2-1/2

[Event "Turkish-ch Youth U17 2024"]
[Site "Belek Antalya"]
[Date "2024.01.25"]
[Round "7"]
[White "Saridag, Omer Melih"]
[Black "Tektas, Onur Efe"]
[Result "1-0"]
[ECO "E04"]
[WhiteElo "2002"]
[BlackElo "1548"]
[Annotator "NA RC"]
[PlyCount "69"]
[EventDate "2024.01.21"]
[EventType "swiss"]
[EventCountry "TUR"]
[SourceTitle "playchess.com"]
[Source "ChessBase"]
[SourceQuality "1"]
[TimeControl "5400+30"]

1. d4 {[%emt 0:01:00]} Nf6 {[%emt 0:02:00]} 2. c4 {[%emt 0:00:30]} e6 {[%emt 0:00:30]} 3. Nf3 {[%emt 0:00:30]} d5 {[%emt 0:00:30]} 4. g3 {[%emt 0:02:30]} dxc4 {[%emt 0:01:30]} 5. Bg2 {[%emt 0:04:30]} c5 {[%emt 0:01:30]} 6. Qa4+ {[%emt 0:05:30]} Bd7 {[%emt 0:04:30]} 7. Qxc4 {[%emt 0:04:30]} Nc6 {[%emt 0:02:30]} 8. O-O {[%emt 0:02:30]} b5 {[%emt 0:03:30]} 9. Qd3 {[%emt 0:07:30]} Qb6 {[%emt 0:05:30]} 10. dxc5 {[%emt 0:04:30]} Bxc5 {[%emt 0:01:30]} 11. a3 {[%emt 0:03:30]} b4 {[%emt 0:08:30]} 12. Nbd2 {[%emt 0:03:30]} O-O {[%emt 0:06:30]} 13. Nb3 {[%emt 0:02:30]} Rac8 {[%emt 0:08:30]} 14. Bg5 $11 {[%emt 0:12:30]} ({White should play} 14. Nxc5 $14 Qxc5 15. Be3) 14... Be7 {[%emt 0:03:30]} 15. a4 {[%emt 0:09:30]} Rfd8 {[%emt 0:02:30]} 16. a5 {[%emt 0:02:30]} Qb8 {[%emt 0:03:30]} 17. Rac1 {[%emt 0:11:30]} e5 {[%emt 0:02:30]} 18. Qa6 {[%emt 0:04:13]} Be6 {[%emt 0:06:30]} 19. Rxc6 {[%emt 0:03:19]} Rxc6 {[%emt 0:00:30]} 20. Qxc6 {[%emt 0:00:30]} Bxb3 {[%emt 0:00:30]} 21. Rc1 {[%emt 0:01:57]} Be6 {[%emt 0:07:30]} 22. Qa4 {[%emt 0:05:52]} Bd7 {[%emt 0:01:30]} 23. Qc2 {[%emt 0:03:10]} Qb5 {[%emt 0:02:30]} 24. Bxf6 {[%emt 0:01:03]} Bxf6 {[%emt 0:04:30]} 25. Qc7 {[%emt 0:01:47]} Qxe2 {[%emt 0:01:40]} 26. Qxa7 {[%emt 0:00:40]} Bg4 {[%emt 0:01:01]} 27. Qe3 {[%emt 0:01:19]} Qxb2 {[%emt 0:07:50]} 28. Re1 {[%emt 0:00:29]} h6 {[%emt 0:02:43]} 29. a6 {[%emt 0:00:17]} Qc3 {[%emt 0:06:44]} 30. a7 {[%emt 0:00:47]} Qxe3 {[%emt 0:01:40]} 31. Rxe3 {[%emt 0:00:30]} Ra8 {[%emt 0:01:14]} 32. Nxe5 {[%emt 0:00:44]} Rxa7 {[%emt 0:00:18]} 33. Nxg4 {[%emt 0:00:30]} Ra1+ {[%emt 0:00:23]} 34. Bf1 {[%emt 0:00:16]} Bc3 {[%emt 0:00:18]} 35. Kg2 {[%emt 0:00:03]} 1-0

[Event "Turkish-ch Youth U17 2024"]
[Site "Belek Antalya"]
[Date "2024.01.25"]
[Round "7"]
[White "Buyuk, Ecrin Efsa"]
[Black "Mustu, Hatice Asli"]
[Result "1-0"]
[ECO "B25"]
[WhiteElo "1976"]
[BlackElo "1841"]
[Annotator "NA RC"]
[PlyCount "131"]
[EventDate "2024.01.21"]
[EventType "swiss"]
[EventCountry "TUR"]
[SourceTitle "playchess.com"]
[Source "ChessBase"]
[SourceQuality "1"]
[TimeControl "5400+30"]

1. e4 {[%emt 0:01:00]} c5 {[%emt 0:01:00]} 2. Nc3 {[%emt 0:00:30]} Nc6 {[%emt 0:00:30]} 3. Nge2 {[%emt 0:00:00]} g6 {[%emt 0:00:30]} 4. g3 {[%emt 0:00:00]} Bg7 {[%emt 0:00:30]} 5. Bg2 {[%emt 0:00:30]} d6 {[%emt 0:00:00]} 6. O-O {[%emt 0:01:30]} e5 {[%emt 0:00:00]} 7. d3 {[%emt 0:00:30]} Nge7 {[%emt 0:00:30]} 8. Be3 {[%emt 0:08:30]} O-O {[%emt 0:05:30]} 9. f4 {[%emt 0:05:30]} Nd4 {[%emt 0:06:30]} 10. h3 {[%emt 0:06:30]} f5 {[%emt 0:22:30]} 11. Kh2 {[%emt 0:35:30]} Rb8 $15 {[%emt 0:04:30]} 12. Rb1 {[%emt 0:02:30]} Be6 {[%emt 0:01:30]} 13. a3 {[%emt 0:01:30]} b6 {[%emt 0:12:30]} 14. Nd5 {[%emt 0:05:30]} Nxe2 {[%emt 0:07:30]} 15. Qxe2 {[%emt 0:00:30]} Nxd5 {[%emt 0:00:30]} 16. exd5 {[%emt 0:00:30]} Bd7 {[%emt 0:01:30]} 17. Qd2 {[%emt 0:02:30]} Qc7 {[%emt 0:01:30]} 18. c4 {[%emt 0:01:30]} b5 {[%emt 0:05:30]} 19. b4 {[%emt 0:05:30]} cxb4 {[%emt 0:01:30]} 20. axb4 {[%emt 0:00:00]} bxc4 {[%emt 0:02:30]} 21. dxc4 {[%emt 0:00:00]} e4 {[%emt 0:06:50]} 22. c5 {[%emt 0:02:34]} Bb5 {[%emt 0:02:39]} 23. Rfc1 {[%emt 0:02:04]} Rfc8 {[%emt 0:01:27]} 24. cxd6 {[%emt 0:03:39]} Qd7 {[%emt 0:00:07]} 25. Rxc8+ {[%emt 0:05:54]} Rxc8 {[%emt 0:00:30]} 26. Rc1 {[%emt 0:00:00]} Rxc1 {[%emt 0:06:19]} 27. Qxc1 {[%emt 0:00:14]} Bf8 {[%emt 0:02:36]} 28. Qa3 {[%emt 0:08:08]} a6 {[%emt 0:01:07]} 29. Bd4 {[%emt 0:00:30]} Qxd6 {[%emt 0:01:12]} 30. Qa2 {[%emt 0:01:13]} Qxb4 {[%emt 0:02:07]} 31. d6+ {[%emt 0:00:30]} Bc4 {[%emt 0:00:30]} 32. d7 {[%emt 0:00:30]} Bxa2 {[%emt 0:00:30]} 33. d8=Q {[%emt 0:00:30]} Qd6 {[%emt 0:00:00]} 34. Qa5 {[%emt 0:00:00]} Bc4 {[%emt 0:01:01]} 35. Bb2 {[%emt 0:00:41]} Qe6 {[%emt 0:02:47]} 36. Qc3 {[%emt 0:00:43]} Kf7 {[%emt 0:00:15]} 37. Qh8 {[%emt 0:00:01]} h5 {[%emt 0:00:52]} 38. Be5 {[%emt 0:00:51]} Bb5 {[%emt 0:00:17]} 39. g4 {[%emt 0:01:01]} hxg4 {[%emt 0:00:30]} 40. hxg4 {[%emt 0:00:00]} Ke8 {[%emt 0:01:04]} 41. gxf5 {[%emt 0:00:19]} gxf5 {[%emt 0:00:00]} 42. Bh3 {[%emt 0:01:12]} Qf7 {[%emt 0:01:29]} 43. Bd4 {[%emt 0:00:29]} Qa2+ {[%emt 0:00:48]} 44. Kg3 {[%emt 0:00:48]} Qa3+ {[%emt 0:00:01]} 45. Kh2 {[%emt 0:00:29]} Bd7 {[%emt 0:00:44]} 46. Qh5+ {[%emt 0:00:44]} Kd8 {[%emt 0:00:30]} 47. Bf6+ {[%emt 0:00:00]} Kc8 {[%emt 0:00:00]} 48. Bxf5 {[%emt 0:01:02]} Qa2+ {[%emt 0:00:17]} 49. Kh3 {[%emt 0:00:30]} Qb3+ {[%emt 0:00:30]} 50. Kh4 {[%emt 0:00:00]} Kc7 {[%emt 0:00:38]} 51. Bxd7 {[%emt 0:00:00]} Kxd7 {[%emt 0:00:30]} 52. Qh7+ {[%emt 0:00:00]} Kc6 {[%emt 0:00:20]} 53. Qxe4+ {[%emt 0:00:10]} Kc7 {[%emt 0:00:53]} 54. Qe8 {[%emt 0:01:09]} Bb4 {[%emt 0:01:05]} 55. Bd8+ {[%emt 0:00:49]} Kd6 {[%emt 0:00:19]} 56. Qe7+ {[%emt 0:00:49]} Kc6 {[%emt 0:00:33]} 57. Qe8+ {[%emt 0:00:38]} Kc5 {[%emt 0:00:58]} 58. Be7+ {[%emt 0:00:30]} Kd4 {[%emt 0:00:06]} 59. Qd8+ {[%emt 0:00:39]} Ke4 {[%emt 0:00:34]} 60. Qa8+ {[%emt 0:00:45]} Kd4 {[%emt 0:00:33]} 61. Qa7+ {[%emt 0:00:12]} Kc4 {[%emt 0:00:54]} 62. Qxa6+ {[%emt 0:00:30]} Kc3 {[%emt 0:00:00]} 63. Qc6+ {[%emt 0:00:29]} Kb2 {[%emt 0:00:19]} 64. Bf6+ {[%emt 0:00:26]} Ka2 {[%emt 0:00:14]} 65. Qa6+ {[%emt 0:00:20]} Ba3 {[%emt 0:00:05]} 66. Be7 {[%emt 0:00:26]} 1-0

[Event "Turkish-ch Youth U17 2024"]
[Site "Belek Antalya"]
[Date "2024.01.25"]
[Round "7"]
[White "Portakalci, Yusuf"]
[Black "Tarhan, Adar"]
[Result "0-1"]
[ECO "D02"]
[WhiteElo "1951"]
[BlackElo "2420"]
[Annotator "RC"]
[PlyCount "154"]
[EventDate "2024.01.21"]
[EventType "swiss"]
[EventCountry "TUR"]
[SourceTitle "playchess.com"]
[Source "ChessBase"]
[SourceQuality "1"]
[TimeControl "5400+30"]

1. d4 {[%emt 0:01:00]} Nf6 {[%emt 0:05:00]} 2. Bf4 {[%emt 0:00:30]} d5 {[%emt 0:04:30]} 3. Nf3 {[%emt 0:00:30]} c5 {[%emt 0:00:30]} 4. e3 {[%emt 0:01:30]} Nc6 {[%emt 0:00:00]} 5. Nbd2 {[%emt 0:00:00]} cxd4 {[%emt 0:03:00]} 6. exd4 {[%emt 0:01:00]} Qb6 {[%emt 0:00:30]} 7. Nb3 {[%emt 0:03:30]} Bg4 {[%emt 0:01:30]} 8. Be2 {[%emt 0:03:30]} e6 {[%emt 0:01:30]} 9. O-O {[%emt 0:03:30]} Nh5 {[%emt 0:02:30]} 10. Be3 {[%emt 0:03:30]} Bd6 {[%emt 0:00:30]} 11. Ne5 {[%emt 0:03:30]} Bxe2 {[%emt 0:01:30]} 12. Qxe2 {[%emt 0:00:30]} Nf6 {[%emt 0:00:00]} 13. c3 {[%emt 0:02:30]} Qc7 {[%emt 0:03:00]} 14. Bf4 {[%emt 0:12:30]} Nd7 {[%emt 0:02:30]} 15. Rfe1 {[%emt 0:02:30]} Ndxe5 {[%emt 0:06:30]} 16. dxe5 {[%emt 0:06:30]} Be7 {[%emt 0:00:00]} 17. Rac1 {[%emt 0:05:30]} a6 {[%emt 0:11:00]} 18. Bg3 {[%emt 0:11:30]} O-O {[%emt 0:00:30]} 19. f4 {[%emt 0:10:30]} g6 {[%emt 0:03:30]} 20. Qg4 {[%emt 0:04:30]} a5 {[%emt 0:01:30]} 21. Kh1 {[%emt 0:01:30]} Qb6 {[%emt 0:00:30]} 22. Rb1 {[%emt 0:00:30]} Qb5 {[%emt 0:02:30]} 23. Re3 {[%emt 0:04:08]} a4 {[%emt 0:01:30]} 24. Nd2 {[%emt 0:02:41]} Bc5 {[%emt 0:01:30]} 25. Ree1 {[%emt 0:00:17]} Ne7 {[%emt 0:02:30]} 26. a3 {[%emt 0:01:29]} Nf5 {[%emt 0:01:30]} 27. Qf3 {[%emt 0:00:27]} Rfd8 {[%emt 0:04:30]} 28. Bf2 {[%emt 0:00:54]} h5 {[%emt 0:02:30]} 29. Red1 {[%emt 0:00:58]} Kg7 {[%emt 0:00:30]} 30. h3 {[%emt 0:01:01]} Rac8 {[%emt 0:04:30]} 31. Kh2 {[%emt 0:01:03]} Bxf2 {[%emt 0:04:30]} 32. Qxf2 {[%emt 0:00:01]} d4 {[%emt 0:00:00]} 33. Ne4 {[%emt 0:01:46]} d3 {[%emt 0:05:00]} 34. Rd2 {[%emt 0:05:15]} Rc4 {[%emt 0:01:30]} 35. Ng3 {[%emt 0:01:11]} Nxg3 {[%emt 0:00:30]} 36. Qxg3 {[%emt 0:00:04]} Rxc3 {[%emt 0:01:30]} 37. Rbd1 {[%emt 0:00:04]} Rb3 {[%emt 0:01:30]} 38. Qg5 {[%emt 0:00:48]} Qd7 {[%emt 0:04:28]} 39. Re1 {[%emt 0:02:51]} Qd4 {[%emt 0:02:21]} 40. Rc1 {[%emt 0:01:25]} Rf8 {[%emt 0:00:30]} 41. Qf6+ {[%emt 0:00:30]} Kg8 {[%emt 0:00:04]} 42. Rc7 {[%emt 0:01:59]} Qe3 {[%emt 0:01:06]} 43. Rd1 {[%emt 0:00:52]} Rxb2 {[%emt 0:00:30]} 44. Rd7 {[%emt 0:01:12]} Rxg2+ {[%emt 0:01:01]} 45. Kxg2 {[%emt 0:00:30]} Qe2+ {[%emt 0:00:30]} 46. Kg3 {[%emt 0:00:30]} Qxd1 {[%emt 0:00:30]} 47. Kh4 {[%emt 0:00:21]} Qg1 {[%emt 0:01:55]} 48. Rxd3 {[%emt 0:00:30]} Kh7 {[%emt 0:00:00]} 49. Qe7 {[%emt 0:01:11]} Kg7 {[%emt 0:01:39]} 50. Qf6+ {[%emt 0:00:41]} Kh6 {[%emt 0:00:10]} 51. Qg5+ {[%emt 0:00:33]} Qxg5+ {[%emt 0:00:30]} 52. fxg5+ {[%emt 0:00:30]} Kg7 {[%emt 0:00:30]} 53. Rd7 {[%emt 0:00:00]} b5 {[%emt 0:00:00]} 54. Rb7 {[%emt 0:00:00]} Rc8 {[%emt 0:00:24]} 55. Rxb5 {[%emt 0:00:17]} Rc4+ {[%emt 0:00:30]} 56. Kg3 {[%emt 0:00:30]} Rc3+ {[%emt 0:00:30]} 57. Kg2 {[%emt 0:00:30]} Rxa3 {[%emt 0:00:30]} 58. h4 {[%emt 0:00:30]} Re3 {[%emt 0:00:00]} 59. Ra5 {[%emt 0:00:35]} a3 {[%emt 0:00:00]} 60. Kh2 {[%emt 0:00:21]} Re2+ {[%emt 0:00:00]} 61. Kg3 {[%emt 0:00:29]} a2 {[%emt 0:00:00]} 62. Kf3 {[%emt 0:00:30]} Rh2 {[%emt 0:00:00]} 63. Kg3 {[%emt 0:00:00]} Rb2 {[%emt 0:00:00]} 64. Kh3 {[%emt 0:00:19]} Kf8 {[%emt 0:00:00]} 65. Ra7 {[%emt 0:00:30]} Ke8 {[%emt 0:00:00]} 66. Kg3 {[%emt 0:00:00]} Kd8 {[%emt 0:00:00]} 67. Kf3 {[%emt 0:00:22]} Kc8 {[%emt 0:00:22]} 68. Ke3 {[%emt 0:00:00]} Kb8 {[%emt 0:00:30]} 69. Ra3 {[%emt 0:00:07]} Kb7 {[%emt 0:00:00]} 70. Kd3 {[%emt 0:00:29]} Kc6 {[%emt 0:00:00]} 71. Kc4 {[%emt 0:00:30]} Rh2 {[%emt 0:00:30]} 72. Ra6+ {[%emt 0:00:00]} Kb7 {[%emt 0:00:00]} 73. Ra3 {[%emt 0:00:00]} Kb6 {[%emt 0:00:00]} 74. Ra8 {[%emt 0:00:12]} Rxh4+ {[%emt 0:00:00]} 75. Kb3 {[%emt 0:00:04]} Rh2 {[%emt 0:00:00]} 76. Kb4 {[%emt 0:00:30]} h4 {[%emt 0:00:30]} 77. Ra3 {[%emt 0:00:30]} h3 {[%emt 0:00:30]} 0-1